bitfinex/quotes_SOLUSD_20250301
["timestamp","ask_amount","ask_price","bid_price","bid_amount"]
[1740826320280,8.5045552,140.85,140.84,7.9896]
[1740826322959,0.03,140.88,140.85,6.6666]
[1740826323162,0.03,140.88,140.86,1.5616]
[1740826323469,5.34266256,140.92,140.89,1.5616]
[1740826323978,5.34266256,140.92,140.91,7.9486]
[1740826323979,3.67606256,140.92,140.91,7.9486]
[1740826324282,6.256e-05,140.92,140.91,7.9486]
[1740826324468,0.0001,140.93,140.91,7.9486]
[1740826328563,0.03,140.95,140.91,23.9162]
[1740826329471,0.03,140.95,140.94,20.0]
[1740826329675,0.03,140.95,140.94,26.3856]
[1740826330354,0.03,140.95,140.94,6.3856]
[1740826331474,0.03,140.95,140.92,6.3863]
[1740826331674,0.03,140.95,140.91,1.5616]
[1740826331675,6.68,140.94,140.91,1.5616]
[1740826331858,80.7,140.93,140.87,1.579]
[1740826332060,1.7932674,140.92,140.87,7.9674]
[1740826332261,80.7,140.91,140.87,1.579]
[1740826332468,82.4934287,140.9,140.87,1.579]
[1740826333570,82.4934287,140.9,140.87,7.9677]
[1740826333778,80.7,140.9,140.87,7.9677]
[1740826334964,80.7,140.9,140.87,23.9398]
[1740826335762,48.4191,140.93,140.89,42.3578]
[1740826337965,48.4191,140.93,140.89,6.3879]
[1740826338165,50.21178695,140.93,140.89,6.3879]
[1740826338884,48.3891,140.92,140.87,1.579]
[1740826339072,50.18255186,140.91,140.84,0.03]
[1740826339266,55.0491,140.9,140.84,6.4201]
[1740826339473,50.18285079,140.89,140.84,0.03]
[1740826339780,48.3891,140.88,140.84,6.4201]
[1740826339971,1.79375449,140.87,140.84,6.4201]
[1740826340162,48.3891,140.86,140.84,0.03]
[1740826340367,56.84329493,140.85,140.84,0.03]
[1740826340984,8.45419493,140.85,140.84,0.03]
[1740826344987,6.66,140.85,140.84,0.03]
[1740826345685,6.66,140.86,140.84,0.03]
[1740826346791,1.79393988,140.85,140.84,0.03]
[1740826347987,6.66,140.86,140.84,0.03]
[1740826348178,1.7938586,140.85,140.84,0.03]
[1740826348790,6.66,140.86,140.84,0.03]
[1740826350165,0.03,140.9,140.84,0.03]
[1740826350371,0.03,140.9,140.85,1.5816]
[1740826350604,0.03,140.9,140.86,6.5358]
[1740826351275,0.03,140.9,140.87,22.3609]
[1740826352670,0.03,140.9,140.89,20.0]
[1740826353377,0.03,140.9,140.89,26.3879]
[1740826353906,0.03,140.93,140.89,44.3578]
[1740826355006,0.03,140.93,140.89,125.3578]
[1740826355205,0.03,140.93,140.9,1.5518]
[1740826355499,0.03,140.93,140.91,6.387]
[1740826355998,80.7,140.92,140.9,7.9392]
[1740826356206,82.49298151,140.92,140.86,24.0602]
[1740826356404,80.7,140.91,140.86,24.0602]
[1740826357699,80.7,140.91,140.87,6.3888]
[1740826358877,1.79313067,140.9,140.86,7.9409]
[1740826359291,1.79313067,140.9,140.86,8.0039]
[1740826360100,82.52337202,140.91,140.86,8.0039]
[1740826361072,80.7,140.9,140.86,8.0039]
[1740826364403,80.7,140.9,140.86,23.9772]
[1740826365795,0.03,140.91,140.86,25.9772]
[1740826365989,0.03,140.91,140.86,23.9772]
[1740826372405,67.12064073,140.92,140.86,23.9772]
[1740826378207,67.12064073,140.92,140.86,57.9238]
[1740826378513,67.12064073,140.92,140.86,59.9238]
[1740826381217,0.03,140.93,140.86,140.9238]
[1740826381396,0.03,140.93,140.86,138.9238]
[1740826381595,0.03,140.93,140.86,140.9238]
[1740826382714,0.03,140.93,140.86,138.9238]
[1740826383018,0.03,140.92,140.86,138.9238]
[1740826383220,0.03,140.92,140.86,104.9772]
[1740826384418,67.12064073,140.91,140.86,23.9772]
[1740826384722,8.35323954,140.9,140.86,8.0039]
[1740826386995,67.12064073,140.89,140.86,8.0039]
[1740826387621,1.79349114,140.88,140.86,0.063]
[1740826388133,67.12064073,140.87,140.86,0.063]
[1740826388807,1.79385057,140.87,140.86,0.063]
[1740826389823,1.79388885,140.88,140.86,0.063]
[1740826390533,8.18228885,140.88,140.86,0.063]
[1740826391929,105.73844886,140.87,140.86,0.063]
[1740826392124,27.03844886,140.87,140.86,0.063]
[1740826392310,25.03844886,140.87,140.86,0.063]
[1740826392624,20.64964886,140.85,140.84,0.03]
[1740826392921,29.00441345,140.85,140.84,0.03]
[1740826393122,2.0,140.82,140.81,0.03]
[1740826393328,24.44481055,140.82,140.81,0.03]
[1740826393519,30.53251055,140.82,140.81,0.03]
[1740826394027,36.92361055,140.82,140.81,0.03]
[1740826394329,38.28111055,140.82,140.81,0.03]
[1740826395129,31.89001055,140.82,140.81,0.03]
[1740826395317,27.89001055,140.82,140.81,0.03]
[1740826395835,26.53251055,140.82,140.81,0.03]
[1740826396133,27.02481055,140.82,140.81,0.03]
[1740826397624,29.02481055,140.82,140.81,0.03]
[1740826397931,27.02481055,140.82,140.81,0.03]
[1740826402827,8.35516169,140.82,140.81,0.03]
[1740826403636,1.79446586,140.85,140.81,0.03]
[1740826403827,6.56,140.82,140.81,0.03]
[1740826405521,6.56,140.84,140.81,0.03]
[1740826406137,87.26,140.84,140.81,0.03]
[1740826406850,87.323,140.84,140.81,0.03]
[1740826408232,0.063,140.84,140.81,0.03]
[1740826408826,0.063,140.84,140.82,8.1412]
[1740826409420,0.063,140.84,140.83,6.3906]
[1740826410317,80.7,140.87,140.83,6.3906]
[1740826410517,6.56,140.89,140.83,24.3673]
[1740826410738,6.56,140.89,140.83,22.3673]
[1740826412341,8.3533409,140.89,140.83,22.3673]
[1740826413936,6.56,140.89,140.83,24.3673]
[1740826414360,6.56,140.89,140.83,336.3673]
[1740826414726,0.03,140.92,140.86,20.0]
[1740826414926,0.03,140.92,140.87,1.5917]
[1740826415127,0.03,140.92,140.88,6.5495]
[1740826416144,0.03,140.92,140.89,6.3879]
[1740826417528,0.03,140.92,140.89,22.3578]
[1740826419424,0.03,140.92,140.89,24.3578]
[1740826421124,0.03,140.92,140.89,105.3578]
[1740826421547,0.03,140.92,140.9,2.0]
[1740826421724,0.03,140.92,140.91,6.387]
[1740826423643,0.03,140.92,140.91,7.9436]
[1740826424244,0.03,140.93,140.91,7.9436]
[1740826424549,0.03,140.93,140.91,9.9436]
[1740826425122,0.03,140.93,140.92,2.0]
[1740826425545,0.03,140.95,140.92,2.0]
[1740826426333,0.03,140.95,140.93,6.3861]
[1740826427135,0.03,140.95,140.91,7.9434]
[1740826427338,0.03,140.95,140.91,1.5566]
[1740826427541,87.26,140.94,140.88,22.5194]
[1740826427935,87.26,140.94,140.89,22.3578]
[1740826429150,6.56,140.94,140.9,2.0]
[1740826429651,6.56,140.94,140.91,2.0]
[1740826430331,6.56,140.94,140.92,6.3866]
[1740826431132,6.56,140.94,140.89,410.9699]
[1740826431133,6.56,140.94,140.9,6.3875]
[1740826431541,6.56,140.94,140.89,6.3878]
[1740826431743,82.4928337,140.93,140.84,6.5715]
[1740826431956,80.7,140.92,140.9,0.063]
[1740826432254,101.14318402,140.91,140.9,0.063]
[1740826432561,82.49353516,140.91,140.9,0.063]
[1740826432748,80.7,140.91,140.9,0.063]
[1740826434738,1.79324229,140.92,140.9,0.063]
[1740826434936,1.7932415,140.91,140.9,0.063]
[1740826435138,1.79319705,140.92,140.9,0.063]
[1740826435563,1.79305517,140.93,140.9,0.063]
[1740826436470,89.05299797,140.94,140.9,0.063]
[1740826437561,87.26,140.94,140.9,0.063]
[1740826438663,87.26,140.94,140.9,6.4505]
[1740826439139,80.7,140.94,140.9,6.4505]
[1740826440762,87.29,140.95,140.9,6.4505]
[1740826443349,87.29,140.95,140.9,0.063]
[1740826443666,1.79253859,140.94,140.9,0.063]
[1740826444781,80.7,140.93,140.9,0.063]
[1740826445063,18.64964886,140.91,140.9,0.063]
[1740826446562,25.03664886,140.91,140.9,0.063]
[1740826446762,26.83037344,140.91,140.9,0.063]
[1740826448771,30.45049763,140.91,140.9,0.063]
[1740826455873,46.41809763,140.91,140.83,0.063]
[1740826456077,18.64964886,140.89,140.83,0.063]
[1740826456369,18.64964886,140.87,140.83,0.063]
[1740826456568,82.49412902,140.86,140.83,0.063]
[1740826456755,6.56,140.85,140.83,0.063]
[1740826456954,1.79412197,140.84,140.83,0.063]
[1740826457870,6.56,140.85,140.83,0.063]
[1740826460353,8.35382834,140.85,140.83,0.063]
[1740826460671,80.7,140.84,140.83,0.063]
[1740826461377,14.74372834,140.85,140.83,0.063]
[1740826462680,18.64964886,140.84,140.83,0.063]
[1740826464074,25.03984886,140.84,140.83,0.063]
[1740826464972,25.03984886,140.84,140.83,0.0001]
[1740826465177,29.03984886,140.84,140.83,0.0001]
[1740826466466,30.42734886,140.84,140.83,0.0001]
[1740826466668,18.64964886,140.8,140.78,0.03]
[1740826466855,27.00501104,140.79,140.78,0.03]
[1740826468273,33.39741104,140.79,140.78,0.03]
[1740826469680,33.39741104,140.79,140.77,0.03]
[1740826469681,18.64964886,140.78,140.77,0.03]
[1740826470180,14.74776218,140.79,140.77,0.03]
[1740826470381,80.7,140.78,140.77,0.03]
[1740826471261,87.26,140.78,140.77,0.03]
[1740826473768,89.05495792,140.78,140.77,0.03]
[1740826475481,87.26,140.78,140.77,0.03]
[1740826476384,6.56,140.78,140.77,0.03]
[1740826477190,12.9529,140.78,140.77,0.03]
[1740826478490,13.0159,140.78,140.77,0.03]
[1740826480574,31.66554886,140.78,140.77,0.03]
[1740826482189,35.30536155,140.78,140.77,0.03]
[1740826483189,35.30536155,140.78,140.75,0.063]
[1740826483190,20.64964886,140.77,140.75,0.063]
[1740826483394,20.44538126,140.76,140.75,0.063]
[1740826484371,26.83918126,140.76,140.75,0.063]
[1740826488995,26.83918126,140.76,140.71,0.03]
[1740826489197,26.83918126,140.76,140.7,1.0]
[1740826489198,18.64964886,140.73,140.7,1.0]
[1740826489378,18.64964886,140.71,140.62,2.05639]
[1740826489573,21.79651596,140.7,140.62,2.05639]
[1740826489905,18.64964886,140.69,140.62,2.05639]
[1740826490107,1.79652531,140.68,140.62,2.05639]
[1740826490399,6.56,140.67,140.62,2.05639]
[1740826490575,1.7965359,140.66,140.62,2.05639]
[1740826490979,87.26,140.67,140.62,2.05639]
[1740826491196,82.49639357,140.66,140.62,0.45669]
[1740826492889,80.7,140.65,140.62,0.45669]
[1740826493086,82.49683148,140.64,140.62,0.45669]
[1740826493797,80.7,140.64,140.62,0.45669]
[1740826494881,87.26,140.66,140.62,6.85689]
[1740826495087,87.26,140.66,140.62,0.45669]
[1740826495801,87.26,140.66,140.62,6.85669]
[1740826497604,80.7,140.66,140.62,6.85669]
[1740826497805,80.7,140.66,140.63,1.5014]
[1740826498009,80.7,140.69,140.64,6.2941]
[1740826498189,80.7,140.69,140.64,8.2941]
[1740826498807,80.7,140.69,140.64,10.2941]
[1740826499192,80.7,140.69,140.65,22.3959]
[1740826499393,80.7,140.69,140.66,1.5014]
[1740826500206,79.0334,140.69,140.66,1.5014]
[1740826500410,87.38905171,140.77,140.69,2.0]
[1740826500710,79.0334,140.76,140.69,2.0]
[1740826501300,79.0334,140.76,140.7,44.3879]
[1740826501504,79.0334,140.76,140.71,1.6009]
[1740826502911,6.623,140.78,140.72,8.1107]
[1740826503213,6.623,140.78,140.72,111.4954]
[1740826503214,0.063,140.78,140.72,111.4954]
[1740826503619,0.063,140.78,140.73,2.0]
[1740826503916,0.063,140.78,140.72,109.4954]
[1740826504291,1.92777456,140.78,140.72,93.5063]
[1740826505203,0.063,140.78,140.72,93.5063]
[1740826506112,0.063,140.78,140.72,109.4954]
[1740826506315,0.063,140.78,140.72,111.4954]
[1740826508219,0.063,140.78,140.73,2.0]
[1740826508395,0.063,140.78,140.73,4.0]
[1740826508992,0.063,140.78,140.74,26.3816]
[1740826509936,0.063,140.78,140.76,1.5773]
[1740826511139,0.063,140.78,140.77,6.3934]
[1740826512912,0.063,140.78,140.77,12.8205]
[1740826516814,0.063,140.78,140.77,14.8205]
[1740826517202,6.56,140.83,140.77,14.8205]
[1740826517411,79.0334,140.84,140.77,30.804]
[1740826517705,79.0334,140.84,140.78,2.0]
[1740826518005,7.906,140.88,140.79,4.0]
[1740826518006,79.0334,140.86,140.79,4.0]
[1740826518427,79.0334,140.86,140.8,2.0]
[1740826518617,6.56,140.87,140.81,20.0]
[1740826518925,6.56,140.87,140.82,1.5515]
[1740826519459,6.56,140.87,140.83,6.3906]
[1740826519805,80.89692499,140.88,140.83,6.3906]
[1740826520136,6.56,140.87,140.83,6.3906]
[1740826523222,80.89693741,140.86,140.78,1.6021]
[1740826523421,79.0334,140.85,140.78,1.6021]
[1740826523731,1.86435648,140.84,140.78,1.6021]
[1740826524638,6.3906,140.83,140.78,1.6021]
[1740826524838,85.5934,140.82,140.78,7.995]
[1740826526536,1.86408782,140.81,140.75,1.5967]
[1740826526739,80.89748782,140.81,140.75,1.5967]
[1740826527351,79.0334,140.8,140.75,1.5967]
[1740826527533,1.86481935,140.79,140.75,1.5967]
[1740826527927,79.0334,140.8,140.75,1.5967]
[1740826528135,1.86470469,140.79,140.75,1.5967]
[1740826528639,79.0334,140.78,140.72,6.497]
[1740826528824,87.45852812,140.77,140.72,6.497]
[1740826529024,87.45852812,140.77,140.72,12.8926]
[1740826529344,87.45852812,140.77,140.72,6.497]
[1740826530333,93.85202812,140.77,140.72,6.497]
[1740826530519,87.45852812,140.77,140.72,6.497]
[1740826531335,79.0334,140.76,140.69,0.03]
[1740826531538,80.89891848,140.75,140.69,0.03]
[1740826531743,80.89891848,140.75,140.69,6.4269]
[1740826532354,79.0334,140.75,140.69,6.4269]
[1740826532650,79.0334,140.75,140.69,26.4195]
[1740826534949,6.56,140.78,140.74,26.497]
[1740826535246,79.0334,140.84,140.74,26.497]
[1740826535247,6.56,140.82,140.75,2.0]
[1740826535955,6.56,140.82,140.77,4.0]
[1740826536160,6.56,140.82,140.78,2.0]
[1740826536325,6.56,140.82,140.79,1.5695]
[1740826536526,85.5934,140.84,140.79,21.5695]
[1740826536852,79.0334,140.84,140.8,6.392]
[1740826538150,6.56,140.85,140.81,6.6149]
[1740826539338,79.0334,140.87,140.81,6.6149]
[1740826539649,85.5934,140.87,140.81,6.6149]
[1740826540149,85.5934,140.87,140.82,6.3911]
[1740826540733,6.56,140.88,140.82,22.3689]
[1740826541639,79.0334,140.87,140.82,22.3689]
[1740826543534,79.0334,140.87,140.82,24.3689]
[1740826543858,79.0334,140.87,140.85,20.0]
[1740826544033,6.56,140.88,140.85,20.0]
[1740826544240,6.56,140.88,140.86,6.3893]
[1740826545056,79.0334,140.9,140.86,6.3893]
[1740826545258,85.5934,140.9,140.86,6.3893]
[1740826545758,79.0334,140.9,140.89,20.0]
[1740826545968,6.59,140.91,140.87,6.434]
[1740826546346,0.03,140.91,140.88,6.3884]
[1740826547264,0.03,140.91,140.87,6.434]
[1740826547265,79.0634,140.91,140.82,2.0]
[1740826547562,20.0,140.87,140.79,12.8264]
[1740826547741,87.45744434,140.86,140.79,6.434]
[1740826548270,85.4231,140.85,140.77,1.5129]
[1740826548565,99.54744262,140.84,140.77,1.5129]
[1740826548768,79.0334,140.83,140.77,1.5129]
[1740826548970,1.86454739,140.82,140.77,1.5129]
[1740826549162,6.56,140.81,140.77,1.5129]
[1740826549364,79.0334,140.8,140.77,1.5129]
[1740826551773,79.0334,140.8,140.77,7.9062]
[1740826552980,6.56,140.81,140.77,7.9062]
[1740826553458,79.0334,140.87,140.78,18.64964886]
[1740826553663,6.56,140.86,140.81,20.0]
[1740826554483,6.56,140.86,140.82,6.3911]
[1740826554772,6.56,140.87,140.82,6.3911]
[1740826555947,6.56,140.87,140.83,1.622]
[1740826556686,6.56,140.87,140.84,6.3902]
[1740826562361,6.56,140.87,140.84,20.0]
[1740826562561,79.0334,140.88,140.84,26.3902]
[1740826563692,6.56,140.89,140.84,6.3902]
[1740826563861,6.56,140.89,140.84,22.3657]
[1740826565883,79.0964,140.9,140.84,22.3657]
[1740826566082,6.56,140.89,140.84,22.3657]
[1740826566666,6.56,140.89,140.84,6.3902]
[1740826566969,79.0334,140.88,140.84,6.3902]
[1740826567162,1.86354146,140.87,140.83,1.622]
[1740826567368,79.0334,140.86,140.81,6.4241]
[1740826567697,1.86401304,140.85,140.79,7.9791]
[1740826567864,85.5934,140.84,140.79,7.9791]
[1740826568059,85.5934,140.84,140.79,9.9791]
[1740826568279,85.5934,140.84,140.79,7.9791]
[1740826569068,80.89730021,140.83,140.79,1.587]
[1740826569368,80.89730021,140.83,140.78,6.4226]
[1740826569680,80.89730021,140.83,140.78,0.03]
[1740826569991,79.0334,140.82,140.78,0.03]
[1740826570190,79.0334,140.81,140.78,6.4228]
[1740826570967,85.5934,140.84,140.78,6.4228]
[1740826571472,85.6134,140.86,140.78,8.4228]
[1740826571666,85.6134,140.86,140.78,89.4228]
[1740826571869,85.6134,140.86,140.78,103.4051]
[1740826572064,85.6134,140.86,140.78,105.4051]
[1740826572369,1.86381063,140.85,140.78,103.4051]
[1740826573070,85.6134,140.86,140.78,103.4051]
[1740826573472,85.6134,140.86,140.78,107.4051]
[1740826575484,85.6134,140.86,140.78,103.4051]
[1740826575766,1.8639517,140.85,140.78,103.4051]
[1740826575972,1.8639517,140.85,140.78,87.4228]
[1740826577294,79.0334,140.84,140.78,6.4228]
[1740826579974,107.48077878,140.83,140.78,0.03]
[1740826580180,79.0334,140.82,140.78,0.03]
[1740826580384,8.42480057,140.81,140.78,0.03]
[1740826581491,79.0334,140.8,140.78,0.03]
[1740826581677,80.89826339,140.79,140.78,0.03]
[1740826582095,20.51451225,140.79,140.78,0.03]
[1740826582280,1.86486339,140.79,140.78,0.03]
[1740826582481,1.86487621,140.8,140.78,0.03]
[1740826582879,18.64964886,140.79,140.78,0.03]
[1740826583279,1.86487621,140.8,140.78,0.03]
[1740826585085,8.25687621,140.8,140.78,0.03]
[1740826585797,1.86487621,140.8,140.78,0.03]
[1740826586198,18.64964886,140.79,140.78,0.03]
[1740826588678,1.86487621,140.8,140.78,0.03]
[1740826592780,1.8647117,140.82,140.78,0.03]
[1740826593000,6.56,140.84,140.78,20.03]
[1740826593910,1.86408407,140.83,140.78,20.03]
[1740826594206,1.86408407,140.83,140.78,0.03]
[1740826595807,6.56,140.84,140.78,0.03]
[1740826596311,87.26,140.84,140.78,0.03]
[1740826597323,82.56420742,140.83,140.78,0.03]
[1740826600614,80.7,140.83,140.78,0.03]
[1740826601890,0.063,140.84,140.8,1.6278]
[1740826602103,0.063,140.84,140.81,6.0891]
[1740826603402,0.063,140.84,140.82,6.3911]
[1740826604695,0.063,140.85,140.82,22.3689]
[1740826607022,0.063,140.85,140.84,6.3902]
[1740826607199,0.063,140.85,140.83,1.6364]
[1740826608117,87.26,140.84,140.79,1.6364]
[1740826608412,82.56442702,140.83,140.78,0.03]
[1740826608806,80.7,140.82,140.78,0.03]
[1740826609021,88.95666505,140.81,140.78,0.03]
[1740826609316,18.64964886,140.79,140.78,0.03]
[1740826609502,27.07481534,140.79,140.78,0.03]
[1740826611511,8.42516648,140.79,140.78,0.03]
[1740826611716,6.56,140.79,140.78,0.03]
[1740826612105,8.42485046,140.79,140.78,0.03]
[1740826614702,6.56,140.79,140.78,0.03]
[1740826618232,1.8647912,140.84,140.78,0.03]
[1740826618435,6.56,140.82,140.78,0.03]
[1740826618606,20.51453641,140.81,140.78,0.03]
[1740826620612,1.86488755,140.81,140.78,0.03]
[1740826620823,1.86448403,140.84,140.78,0.03]
[1740826621026,6.56,140.81,140.78,0.03]
[1740826621727,1.8644307,140.8,140.78,0.03]
[1740826624831,80.7,140.79,140.78,0.03]
[1740826625327,80.7,140.84,140.79,1.5703]
[1740826627522,80.7,140.84,140.8,6.392]
[1740826628730,80.7,140.84,140.8,22.3721]
[1740826629419,1.86402241,140.83,140.8,6.392]
[1740826629815,82.56428401,140.84,140.8,6.392]
[1740826630931,80.7,140.84,140.8,6.392]
[1740826633644,80.763,140.84,140.8,6.392]
[1740826637524,80.763,140.84,140.8,22.3721]
[1740826644537,80.763,140.84,140.8,24.3721]
[1740826645149,80.763,140.84,140.8,22.3721]
[1740826646635,1.86402274,140.83,140.8,6.422]
[1740826647046,0.063,140.84,140.83,20.0]
[1740826647245,0.063,140.84,140.83,26.3906]
[1740826647935,80.7,140.88,140.83,28.3906]
[1740826648141,80.763,140.9,140.84,9.6672]
[1740826648446,0.063,140.9,140.84,9.6672]
[1740826649153,0.063,140.9,140.85,22.3641]
[1740826650955,0.063,140.9,140.85,24.3641]
[1740826653136,0.063,140.9,140.88,20.0]
[1740826655466,0.063,140.9,140.89,6.3879]
[1740826656758,0.063,140.9,140.89,7.8896]
[1740826656950,0.063,140.9,140.89,9.8896]
[1740826658259,0.0001,140.9,140.89,16.4125]
[1740826659455,0.0001,140.91,140.89,16.4125]
[1740826659652,0.0001,140.92,140.91,22.0]
[1740826659861,0.0001,140.92,140.91,2.0]
[1740826661368,0.0001,140.92,140.91,6.387]
[1740826661970,80.7,140.91,140.86,2.0]
[1740826662150,82.56256973,140.9,140.85,0.063]
[1740826662354,80.7,140.89,140.85,0.063]
[1740826662555,82.56365554,140.88,140.85,0.063]
[1740826662755,6.6,140.87,140.85,0.063]
[1740826663366,82.56371911,140.86,140.85,0.063]
[1740826664852,80.7,140.86,140.85,0.063]
[1740826666350,6.6,140.87,140.85,0.063]
[1740826681199,82.56357485,140.91,140.85,20.063]
[1740826681400,89.12357485,140.91,140.85,20.063]
[1740826683012,89.12357485,140.91,140.86,6.3893]
[1740826685103,89.12357485,140.91,140.85,0.063]
[1740826685495,0.0001,140.92,140.87,22.0]
[1740826685715,0.0001,140.92,140.87,29.7263]
[1740826687086,0.0001,140.92,140.88,22.3594]
[1740826687897,0.0001,140.92,140.91,20.0]
[1740826689392,0.0001,140.92,140.91,26.387]
[1740826690593,0.0001,140.92,140.91,28.387]
[1740826690922,0.03,140.95,140.92,1.6231]
[1740826691212,0.03,140.95,140.93,6.1651]
[1740826691402,0.03,140.95,140.94,6.3856]
[1740826693293,80.73,140.95,140.9,6.3875]
[1740826693491,87.31,140.95,140.9,6.3875]
[1740826695709,87.31,140.95,140.91,20.0]
[1740826696704,6.61,140.95,140.91,20.0]
[1740826697825,6.61,140.95,140.92,6.3866]
[1740826698797,6.61,140.95,140.91,17.9669]
[1740826699006,6.61,140.95,140.94,20.0]
[1740826699513,0.03,140.95,140.93,20.0]
[1740826701121,0.03,140.95,140.94,6.3856]
[1740826705025,0.03,140.95,140.94,26.3856]
[1740826706740,0.0001,140.95,140.94,8.3856]
[1740826707036,0.063,140.99,140.97,20.0]
[1740826708121,0.063,141.0,140.97,22.0]
[1740826709024,0.063,141.0,140.98,6.3838]
[1740826713507,0.063,141.01,140.98,6.3838]
[1740826713852,0.063,141.01,141.0,20.0]
[1740826714537,0.063,141.03,141.01,20.0]
[1740826715745,0.063,141.03,141.02,6.382]
[1740826727869,0.063,141.03,140.99,20.0]
[1740826728178,6.603,141.03,140.99,20.0]
[1740826729376,6.603,141.03,141.0,6.3829]
[1740826732849,6.603,141.03,141.0,22.3403]
[1740826733749,6.603,141.03,141.0,22.4033]
[1740826735655,0.063,141.03,141.0,22.4033]
[1740826736952,0.0001,141.03,141.02,2.0]
[1740826738267,0.0001,141.03,141.02,6.382]
[1740826744895,0.0001,141.05,141.03,18.64964886]
[1740826745102,0.0001,141.05,141.03,101.64964886]
[1740826745470,0.0001,141.06,141.05,20.0]
[1740826746497,0.0001,141.06,141.05,26.3807]
[1740826747200,0.03,141.1,141.08,2.0]
[1740826747368,0.03,141.15,141.11,20.0]
[1740826748375,0.03,141.15,141.12,6.3775]
[1740826748591,0.03,141.15,141.12,22.3213]
[1740826750071,0.03,141.15,141.14,20.0]
[1740826750267,0.0001,141.15,141.14,26.3766]
[1740826751476,0.0001,141.15,141.14,28.3766]
[1740826751871,0.0001,141.15,141.14,49.02624886]
[1740826752071,0.0001,141.15,141.14,130.02624886]
[1740826752593,0.0001,141.18,141.16,2.0]
[1740826752803,0.0001,141.18,141.17,2.0]
[1740826753171,0.0001,141.18,141.17,20.64964886]
[1740826754381,0.0001,141.18,141.17,27.02484886]
[1740826754789,0.0001,141.18,141.17,110.02484886]
[1740826755294,0.0001,141.18,141.17,6.3752]
[1740826756473,0.0001,141.18,141.17,20.0]
[1740826757891,0.0001,141.18,141.17,26.3752]
[1740826763875,0.0001,141.18,141.17,45.02484886]
[1740826764616,0.0001,141.18,141.17,47.02484886]
[1740826766605,0.0001,141.18,141.17,128.02484886]
[1740826768505,82.55898657,141.25,141.17,143.96304886]
[1740826770292,82.55898657,141.25,141.17,175.83944886]
[1740826770807,80.7,141.24,141.17,42.3134]
[1740826771012,1.85912742,141.23,141.17,42.3134]
[1740826773403,80.7,141.24,141.17,42.3134]
[1740826776313,80.7,141.23,141.17,42.3134]
[1740826777594,1.8589191,141.25,141.17,42.3134]
[1740826777912,1.8589191,141.25,141.17,74.1898]
[1740826781516,1.8589191,141.25,141.18,7.9619]
[1740826781711,1.8589191,141.25,141.19,22.3102]
[1740826781910,1.8589191,141.25,141.22,20.0]
[1740826782111,89.09874697,141.26,141.22,20.0]
[1740826782313,0.03,141.25,141.22,20.0]
[1740826783801,0.03,141.25,141.23,6.3725]
[1740826785402,0.03,141.25,141.23,7.9814]
[1740826785602,80.7,141.29,141.23,23.9128]
[1740826785810,1.78747387,141.28,141.23,23.9128]